bitfinex/quotes_BTCUSD_20230114
["timestamp","ask_amount","ask_price","bid_price","bid_amount"]
[1673708020790,0.00819544,20820.0,20816.0,0.67210477]
[1673708021119,0.00819544,20820.0,20816.0,1.15250377]
[1673708021366,0.14636616,20820.0,20816.0,0.00098182]
[1673708021628,0.06276632,20819.0,20816.0,0.00098182]
[1673708021911,0.580337,20819.0,20816.0,0.00098182]
[1673708022159,1.060667,20819.0,20816.0,0.00098182]
[1673708022640,0.960667,20819.0,20816.0,0.00098182]
[1673708023909,0.47720169,20818.0,20809.0,0.35418654]
[1673708024153,1.441235,20816.0,20806.0,0.35418654]
[1673708024421,1.441235,20816.0,20806.0,0.96456628]
[1673708024422,0.815767,20815.0,20806.0,0.96456628]
[1673708024679,1.441452,20813.0,20805.0,0.9666]
[1673708024925,0.23817072,20812.0,20805.0,0.9666]
[1673708025178,0.23817072,20812.0,20803.0,0.62302659]
[1673708025179,0.96108,20810.0,20803.0,0.62302659]
[1673708025437,0.96108,20810.0,20802.0,0.97501055]
[1673708025438,0.13817072,20809.0,20802.0,0.83488754]
[1673708025706,0.13817072,20809.0,20802.0,0.62304059]
[1673708025707,0.13817072,20808.0,20802.0,0.62304059]
[1673708025952,0.13817072,20807.0,20803.0,0.46302459]
[1673708026203,0.480588,20808.0,20807.0,0.15263099]
[1673708026941,0.48054,20810.0,20807.0,0.15263099]
[1673708027197,0.48054,20810.0,20807.0,0.34335694]
[1673708027452,0.48054,20810.0,20807.0,0.15263099]
[1673708027695,0.480528,20811.0,20807.0,0.15263099]
[1673708027696,0.480528,20811.0,20807.0,0.34335694]
[1673708028188,0.35,20810.0,20807.0,0.34335694]
[1673708028443,0.830548,20810.0,20807.0,0.15263099]
[1673708028704,1.00980181,20810.0,20807.0,0.15263099]
[1673708028960,0.1,20809.0,20807.0,0.15263099]
[1673708029207,0.961168,20808.0,20807.0,0.15263099]
[1673708029452,0.480584,20808.0,20807.0,0.15263099]
[1673708029703,0.830563,20809.0,20807.0,0.15263099]
[1673708030199,0.35,20808.0,20807.0,0.15263099]
[1673708030710,0.00095408,20812.0,20808.0,0.24618705]
[1673708030711,0.48146208,20812.0,20808.0,0.24618705]
[1673708030961,0.48146208,20812.0,20809.0,0.69955795]
[1673708031212,0.48146208,20812.0,20810.0,0.320633]
[1673708031449,0.48146208,20812.0,20811.0,0.208809]
[1673708031687,0.48146208,20812.0,20809.0,0.29044902]
[1673708031688,0.480508,20812.0,20809.0,0.29044902]
[1673708031947,0.1,20811.0,20808.0,0.24618705]
[1673708032195,0.48052,20811.0,20808.0,0.24618705]
[1673708032954,0.961035,20811.0,20808.0,0.24618705]
[1673708033455,0.1,20810.0,20808.0,0.24618705]
[1673708033709,1.441683,20809.0,20808.0,0.24618705]
[1673708033956,0.1,20808.0,20802.0,0.14320405]
[1673708034207,0.73188169,20808.0,20801.0,0.01232069]
[1673708034451,1.44187,20807.0,20801.0,0.20304664]
[1673708034699,1.44187,20807.0,20801.0,0.01232069]
[1673708034951,1.68078377,20807.0,20801.0,0.20304664]
[1673708035226,1.68176301,20807.0,20801.0,0.20304664]
[1673708035473,1.68176301,20807.0,20801.0,0.01232069]
[1673708035474,0.48570169,20806.0,20801.0,0.01232069]
[1673708035722,2.01919669,20805.0,20801.0,0.01232069]
[1673708035968,0.48570169,20804.0,20801.0,0.01232069]
[1673708036215,0.47720169,20803.0,20801.0,0.01232069]
[1673708036459,1.91929869,20803.0,20801.0,0.01232069]
[1673708036700,0.1,20802.0,20801.0,0.01232069]
[1673708036942,1.91929869,20803.0,20801.0,0.01232069]
[1673708037194,2.2191171,20803.0,20801.0,0.01232069]
[1673708037736,0.1,20802.0,20801.0,0.01232069]
[1673708037987,0.480723,20802.0,20801.0,0.01232069]
[1673708039246,1.061398,20803.0,20801.0,0.01232069]
[1673708039247,0.580699,20803.0,20801.0,0.01232069]
[1673708041012,1.061398,20803.0,20801.0,0.01232069]
[1673708041518,0.1,20803.0,20801.0,0.68450628]
[1673708041783,0.1,20803.0,20802.0,0.620685]
[1673708042278,0.1,20803.0,20802.0,0.720685]
[1673708042534,0.00097924,20807.0,20803.0,0.1]
[1673708042780,0.48048,20813.0,20804.0,0.40891549]
[1673708043030,0.48147731,20813.0,20805.0,1.46456149]
[1673708043281,0.48147731,20813.0,20806.0,0.39967195]
[1673708043531,0.74652848,20813.0,20807.0,0.51132495]
[1673708043789,0.74652848,20813.0,20807.0,0.19072595]
[1673708043790,0.59314169,20812.0,20807.0,0.19072595]
[1673708044041,1.441578,20811.0,20807.0,0.19072595]
[1673708044296,1.441578,20811.0,20803.0,0.14488164]
[1673708044297,0.68067366,20810.0,20803.0,0.14488164]
[1673708044550,1.061172,20808.0,20803.0,0.33560759]
[1673708044798,1.061172,20808.0,20803.0,0.14488164]
[1673708045056,0.1,20807.0,20803.0,0.14488164]
[1673708045315,1.441905,20806.0,20803.0,0.14488164]
[1673708045575,0.57720169,20805.0,20803.0,0.14488164]
[1673708045831,0.57720169,20805.0,20801.0,0.01232069]
[1673708045832,0.1,20803.0,20801.0,0.01232069]
[1673708046082,0.961446,20802.0,20801.0,0.01232069]
[1673708046587,1.33011156,20802.0,20801.0,0.01232069]
[1673708046844,0.961446,20802.0,20801.0,0.01232069]
[1673708047346,0.1,20801.0,20795.0,0.76468494]
[1673708047603,0.480769,20800.0,20795.0,0.76468494]
[1673708047860,0.480756,20801.0,20795.0,1.24556894]
[1673708048105,0.480715,20803.0,20796.0,0.320685]
[1673708048361,0.00097912,20800.0,20797.0,0.39987695]
[1673708048610,0.480731,20802.0,20798.0,0.3]
[1673708048858,0.48169094,20802.0,20798.0,0.49144069]
[1673708049104,0.48169094,20802.0,20798.0,0.19072595]
[1673708049354,0.1,20801.0,20796.0,0.3]
[1673708049610,0.47720169,20800.0,20794.0,4.17112652]
[1673708049860,0.01594,20797.0,20794.0,4.17112652]
[1673708050122,0.47720169,20796.0,20794.0,4.17112652]
[1673708050372,0.49718769,20795.0,20792.0,0.01207074]
[1673708050665,1.542721,20794.0,20792.0,0.01207074]
[1673708050958,1.542721,20794.0,20781.0,0.35667681]
[1673708050959,2.74388769,20793.0,20781.0,0.35667681]
[1673708051144,2.74388769,20793.0,20780.0,1.50750045]
[1673708051145,0.47720169,20790.0,20780.0,1.0]
[1673708051397,0.47720169,20790.0,20780.0,1.19072595]
[1673708051398,0.019986,20789.0,20780.0,1.19072595]
[1673708051651,0.47720169,20790.0,20785.0,0.019245]
[1673708051652,0.44694467,20790.0,20785.0,0.019245]
[1673708051901,0.1,20789.0,20786.0,0.19072595]
[1673708052154,0.00706385,20791.0,20786.0,0.19072595]
[1673708052393,0.00098054,20790.0,20787.0,0.18744415]
[1673708052903,0.00706385,20791.0,20782.0,0.1372]
[1673708053159,0.19072595,20790.0,20781.0,0.72267095]
[1673708053424,0.19872595,20789.0,20781.0,0.72267095]
[1673708053669,0.19872595,20789.0,20781.0,0.019247]
[1673708053670,0.29072595,20788.0,20781.0,0.019247]
[1673708053927,0.21071195,20787.0,20781.0,0.20669115]
[1673708054181,0.14869331,20788.0,20781.0,0.20669115]
[1673708054182,0.19072595,20786.0,20781.0,0.20669115]
[1673708054439,0.19072595,20786.0,20782.0,0.320866]
[1673708054699,0.00706385,20791.0,20783.0,0.194331]
[1673708054948,0.008,20788.0,20784.0,0.18744415]
[1673708055226,0.00019,20786.0,20781.0,0.111247]
[1673708055454,0.00819,20786.0,20781.0,0.503247]
[1673708055724,0.00819,20786.0,20782.0,0.320866]
[1673708056006,0.00819,20786.0,20783.0,0.494331]
[1673708056222,9e-05,20786.0,20784.0,0.98547884]
[1673708056472,0.00096591,20790.0,20785.0,0.294311]
[1673708056721,0.00096591,20790.0,20786.0,0.81674415]
[1673708056968,0.00096591,20790.0,20787.0,1.31263015]
[1673708057217,0.01406385,20791.0,20788.0,0.81671215]
[1673708057218,0.00706385,20791.0,20788.0,0.81671215]
[1673708057478,0.00706385,20791.0,20789.0,0.38170915]
[1673708057738,0.00706385,20791.0,20790.0,0.620735]
[1673708059722,0.00706385,20791.0,20790.0,0.758735]
[1673708060252,0.0009939,20799.0,20790.0,1.43188084]
[1673708060504,0.0009939,20799.0,20791.0,1.12691078]
[1673708060754,0.19171985,20799.0,20792.0,0.80813715]
[1673708061000,0.19072595,20799.0,20793.0,0.38166815]
[1673708061252,0.01594,20803.0,20794.0,0.80810415]
[1673708061507,0.01594,20803.0,20795.0,0.18744415]
[1673708061508,0.37344436,20803.0,20795.0,0.18744415]
[1673708061764,0.37344436,20803.0,20796.0,0.18744415]
[1673708061765,1.14866064,20802.0,20796.0,0.18744415]
[1673708062013,1.14866064,20802.0,20787.0,1.537774]
[1673708062014,0.01594,20799.0,20788.0,0.40589663]
[1673708062269,0.480842,20797.0,20788.0,0.18744415]
[1673708062539,0.480842,20797.0,20787.0,0.918425]
[1673708062540,0.31071195,20796.0,20790.0,0.138]
[1673708062811,1.16476964,20795.0,20783.0,1.43455862]
[1673708063069,0.85875609,20794.0,20784.0,1.11764415]
[1673708063332,0.19072595,20793.0,20785.0,0.18744415]
[1673708063604,0.19072595,20793.0,20784.0,1.411334]
[1673708063605,0.19072595,20792.0,20788.0,0.138]
[1673708063835,0.00096316,20794.0,20789.0,0.194197]
[1673708064079,0.35527781,20797.0,20790.0,0.50824515]
[1673708064336,0.165524,20797.0,20791.0,0.18744415]
[1673708064583,0.00097214,20797.0,20792.0,0.18744415]
[1673708064852,0.00097214,20797.0,20793.0,0.18744415]
[1673708065098,0.00097214,20797.0,20787.0,1.2286493]
[1673708065346,0.19072595,20796.0,20788.0,0.18744415]
[1673708065600,0.19072595,20795.0,20788.0,0.48744415]
[1673708065852,0.19072595,20794.0,20792.0,0.138]
[1673708066102,0.19072595,20794.0,20782.0,0.8741]
[1673708066103,1.14885864,20793.0,20782.0,0.8741]
[1673708066349,0.01594,20791.0,20788.0,0.138]
[1673708066621,0.01594,20791.0,20782.0,0.8741]
[1673708066622,0.67172595,20790.0,20782.0,1.06154415]
[1673708066862,0.496919,20791.0,20782.0,1.06154415]
[1673708066863,0.19072595,20789.0,20782.0,1.06154415]
[1673708067111,0.480931,20793.0,20782.0,1.06154415]
[1673708067112,0.19072595,20788.0,20782.0,1.06154415]
[1673708067367,0.19072595,20787.0,20783.0,0.320866]
[1673708067624,0.19072595,20787.0,20784.0,0.194302]
[1673708067878,0.20989834,20787.0,20781.0,0.019247]
[1673708068127,0.18572595,20786.0,20781.0,0.019247]
[1673708068382,0.18572595,20785.0,20781.0,0.019247]
[1673708068630,0.66583747,20787.0,20781.0,0.019247]
[1673708068884,0.3104156,20786.0,20783.0,0.138]
[1673708069130,0.3104156,20786.0,20781.0,0.20997295]
[1673708069131,0.481116,20785.0,20781.0,0.20997295]
[1673708069379,0.481116,20785.0,20781.0,0.157247]
[1673708069380,0.119986,20784.0,20781.0,0.157247]
[1673708069647,1.1288373,20786.0,20781.0,0.019247]
[1673708069648,1.1278373,20786.0,20781.0,0.019247]
[1673708069918,0.83233631,20786.0,20781.0,0.34797295]
[1673708070165,0.18572595,20786.0,20781.0,0.34797295]
[1673708070411,0.1,20785.0,20781.0,0.34797295]
[1673708070621,0.28572595,20785.0,20781.0,0.157247]
[1673708070932,0.28572595,20785.0,20781.0,0.019247]
[1673708071188,0.120986,20784.0,20781.0,0.157247]
[1673708071429,0.76687995,20784.0,20781.0,0.019247]
[1673708071684,0.019986,20783.0,20781.0,0.34797295]
[1673708071937,0.001,20785.0,20781.0,0.157247]
[1673708072188,1.12293161,20787.0,20781.0,0.157247]
[1673708072189,0.0009513,20787.0,20781.0,0.20997295]
[1673708072458,0.001,20785.0,20782.0,0.19072595]
[1673708072711,0.001,20785.0,20782.0,0.97190095]
[1673708073004,0.001,20783.0,20782.0,0.97183978]
[1673708073239,4.393e-05,20783.0,20782.0,1.102041]
[1673708073496,4.393e-05,20783.0,20782.0,0.620866]
[1673708073997,0.49792421,20790.0,20782.0,0.620866]
[1673708073998,0.48198421,20790.0,20782.0,0.620866]
[1673708074253,0.18675933,20790.0,20783.0,1.34735795]
[1673708074496,0.66748409,20790.0,20784.0,0.49072595]
[1673708074764,0.66748409,20790.0,20785.0,0.19072595]
[1673708074765,0.48169697,20790.0,20785.0,0.19072595]
[1673708075023,0.48169697,20790.0,20786.0,0.19072595]
[1673708075539,0.48169697,20790.0,20781.0,1.408148]
[1673708075540,0.019986,20789.0,20781.0,1.408148]
[1673708075795,0.68682612,20788.0,20784.0,0.138]
[1673708076052,0.66684012,20788.0,20784.0,0.138]
[1673708076301,0.119986,20787.0,20784.0,0.138]
[1673708076550,0.76687812,20787.0,20781.0,1.11767295]
[1673708076806,0.20577312,20786.0,20781.0,0.019247]
[1673708077076,1.14804112,20785.0,20781.0,0.019247]
[1673708077319,0.119986,20784.0,20781.0,0.019247]
[1673708077566,0.481145,20784.0,20781.0,0.019247]
[1673708077827,0.33867259,20787.0,20781.0,0.019247]
[1673708077828,0.64804414,20786.0,20781.0,0.019247]
[1673708078088,0.64804414,20786.0,20781.0,0.20997295]
[1673708078089,0.18578712,20786.0,20781.0,0.20997295]
[1673708078345,0.66688012,20786.0,20781.0,0.20997295]
[1673708078551,0.8298786,20786.0,20781.0,0.34797295]
[1673708079098,0.1,20785.0,20781.0,0.34797295]
[1673708079349,0.982272,20784.0,20781.0,0.019247]
[1673708079645,0.962286,20784.0,20781.0,0.157247]
[1673708079898,0.962286,20784.0,20781.0,0.019247]
[1673708080178,0.962286,20784.0,20781.0,0.157247]
[1673708080420,1.16827979,20784.0,20781.0,0.019247]
[1673708080690,0.01594,20782.0,20781.0,0.138]
[1673708080940,0.501171,20782.0,20781.0,0.138]
[1673708081194,0.982356,20782.0,20781.0,0.138]
[1673708081536,0.982356,20782.0,20780.0,1.0]
[1673708081724,1.17352721,20782.0,20781.0,0.019252]
[1673708081979,1.082356,20782.0,20781.0,0.019252]
[1673708082225,1.55955769,20782.0,20781.0,0.019252]
[1673708082481,0.982356,20782.0,20781.0,0.157252]
[1673708082725,0.982356,20782.0,20781.0,0.019252]
[1673708082981,1.56055769,20782.0,20781.0,0.158252]
[1673708083735,1.46055769,20782.0,20781.0,0.158252]
[1673708085002,0.020986,20782.0,20781.0,0.158252]
[1673708085251,0.481134,20785.0,20781.0,0.019252]
[1673708085502,0.001,20782.0,20781.0,0.159252]
[1673708086247,0.4820767,20786.0,20781.0,0.019252]
[1673708086492,0.4820767,20786.0,20782.0,0.19072595]
[1673708086744,0.0009677,20786.0,20783.0,0.19072595]
[1673708087003,0.0009677,20786.0,20784.0,0.320866]
[1673708087278,0.0009677,20786.0,20784.0,0.19072595]
[1673708087520,0.48101,20790.0,20783.0,0.481156]
[1673708087766,0.35679163,20789.0,20784.0,0.19072595]
[1673708088017,0.982097,20788.0,20784.0,0.19072595]
[1673708088272,0.49718769,20787.0,20781.0,0.019252]
[1673708088523,0.66689612,20786.0,20783.0,0.138]
[1673708088771,0.019986,20785.0,20781.0,0.20997795]
[1673708089027,0.18578712,20785.0,20784.0,0.139]
[1673708089293,1.1297839,20788.0,20782.0,0.3]
[1673708089294,0.00096499,20788.0,20782.0,0.3]
[1673708089558,0.18675211,20788.0,20784.0,0.481139]
[1673708089836,0.00096499,20788.0,20785.0,0.81159195]
[1673708090089,0.00721061,20792.0,20787.0,0.1]
[1673708090396,0.00820227,20792.0,20788.0,1.47361395]
[1673708090595,0.00820227,20792.0,20789.0,0.81159195]
[1673708090866,0.00820227,20792.0,20790.0,0.194138]
[1673708091102,0.00820227,20792.0,20790.0,0.67172395]
[1673708091103,0.00721061,20792.0,20790.0,0.67172395]
[1673708091366,0.00721061,20792.0,20791.0,0.30071497]
[1673708091616,0.00721061,20792.0,20791.0,0.62158097]
[1673708091871,0.00721061,20792.0,20791.0,0.320866]
[1673708092136,0.00721061,20792.0,20788.0,0.481035]
[1673708092137,0.00721061,20792.0,20788.0,0.1]
[1673708092421,0.18578712,20791.0,20790.0,0.138]
[1673708092672,0.00721061,20792.0,20790.0,0.138]
[1673708092922,0.00721061,20792.0,20791.0,0.123]
[1673708093165,0.00721061,20792.0,20788.0,0.1]
[1673708093166,0.02719661,20792.0,20788.0,0.1]
[1673708093419,0.19299773,20792.0,20787.0,0.1]
[1673708093661,0.19299773,20792.0,20786.0,1.50057]
[1673708093662,0.18578712,20791.0,20786.0,1.40057]
[1673708093914,0.18578712,20790.0,20786.0,1.40057]
[1673708094162,0.18578712,20790.0,20788.0,0.138]
[1673708094408,0.00919816,20792.0,20787.0,0.4]
[1673708094409,0.00819816,20792.0,20787.0,0.3]
[1673708094675,0.001,20791.0,20787.0,0.49072595]
[1673708094925,0.001,20791.0,20786.0,1.40057]
[1673708094926,0.18578712,20791.0,20786.0,1.40057]
[1673708095173,0.18678712,20790.0,20788.0,0.138]
[1673708095430,0.001,20790.0,20786.0,0.9195]
[1673708095682,0.001,20790.0,20784.0,0.781129]
[1673708095683,0.18678712,20790.0,20787.0,0.138]
[1673708095937,0.18678712,20790.0,20784.0,0.781129]
[1673708095938,0.480999,20791.0,20786.0,0.3]
[1673708096190,0.001,20790.0,20788.0,0.138]
[1673708097183,0.480999,20791.0,20786.0,0.1]
[1673708097448,1.14878812,20790.0,20787.0,0.138]
[1673708097697,0.019986,20789.0,20783.0,1.39656]
[1673708097948,0.18578712,20788.0,20784.0,0.1]
[1673708098200,0.18578712,20788.0,20785.0,0.320866]
[1673708098450,0.481021,20790.0,20786.0,0.332249]
[1673708098698,0.962039,20790.0,20787.0,0.320833]
[1673708098937,0.001,20788.0,20787.0,0.19072595]
[1673708099177,0.001,20788.0,20785.0,0.581112]
[1673708099441,0.001,20788.0,20786.0,0.3]
[1673708099687,0.001,20788.0,20787.0,0.320866]
[1673708099948,0.001,20788.0,20787.0,1.47372995]
[1673708100201,0.002,20788.0,20787.0,1.583004]
[1673708100453,0.00819816,20792.0,20788.0,0.1]
[1673708100720,0.00819816,20792.0,20789.0,0.38491195]
[1673708100964,0.00819816,20792.0,20791.0,0.1]
[1673708100965,0.00721061,20792.0,20791.0,0.1]
[1673708101214,0.00721061,20792.0,20791.0,1.44684595]
[1673708101473,0.00721061,20792.0,20791.0,1.25612]
[1673708101728,0.00647661,20792.0,20791.0,1.55612]
[1673708102235,0.00747661,20792.0,20791.0,1.55612]
[1673708102511,0.00747661,20792.0,20791.0,1.45612]
[1673708103019,0.00647661,20792.0,20791.0,1.45612]
[1673708103276,0.19326373,20792.0,20791.0,0.332166]
[1673708103542,0.19226373,20792.0,20787.0,0.481054]
[1673708103784,0.19226373,20792.0,20786.0,1.351376]
[1673708103785,0.00747661,20792.0,20791.0,0.138]
[1673708104055,0.00747661,20792.0,20787.0,0.581062]
[1673708104056,0.00845387,20792.0,20787.0,0.581062]
[1673708104400,0.00847661,20792.0,20791.0,0.138]
[1673708104616,0.00847661,20792.0,20786.0,1.35137]
[1673708104617,0.00647661,20792.0,20786.0,1.35137]
[1673708104878,0.18578712,20791.0,20787.0,0.1]
[1673708105130,0.18578712,20791.0,20787.0,0.138]
[1673708105131,1.21131688,20790.0,20787.0,0.138]
[1673708105385,0.20577312,20789.0,20787.0,0.138]
[1673708105630,0.962092,20788.0,20787.0,0.138]
[1673708105887,1.16786512,20788.0,20787.0,0.138]
[1673708106188,1.94447488,20788.0,20787.0,0.138]
[1673708106421,1.94447488,20788.0,20781.0,0.019252]
[1673708106708,0.18578712,20787.0,20781.0,0.20997795]
[1673708106983,0.18578712,20787.0,20782.0,0.1]
[1673708106984,0.18578712,20786.0,20782.0,0.1]
[1673708107235,0.18078712,20786.0,20782.0,0.1]
[1673708108251,0.66188012,20786.0,20782.0,0.1]
[1673708108509,0.66188012,20786.0,20781.0,0.019252]
[1673708108770,0.20077312,20785.0,20781.0,0.019252]
[1673708109020,0.481143,20784.0,20781.0,0.019252]
[1673708109268,0.481143,20784.0,20782.0,0.138]
[1673708109508,0.481093,20786.0,20781.0,0.019252]
[1673708109779,0.481117,20785.0,20781.0,0.44797795]
[1673708110032,0.66190412,20785.0,20781.0,0.157252]
[1673708110282,0.89073634,20785.0,20781.0,0.019252]
[1673708110490,0.001,20784.0,20781.0,0.019252]
[1673708110990,0.18078712,20784.0,20781.0,0.019252]
[1673708111296,0.482139,20785.0,20781.0,0.019252]
[1673708111560,0.481143,20784.0,20781.0,0.20997795]
[1673708111809,0.481143,20784.0,20781.0,0.019252]
[1673708112055,0.481143,20784.0,20781.0,0.157252]
[1673708112329,0.481143,20784.0,20781.0,0.019252]
[1673708112581,0.482139,20785.0,20781.0,0.34797795]
[1673708112828,0.482139,20785.0,20781.0,0.44797795]
[1673708113088,0.001,20784.0,20781.0,0.44797795]
[1673708113374,0.001,20784.0,20781.0,0.257252]
[1673708113609,0.48207764,20786.0,20781.0,0.019252]
[1673708113891,0.001,20785.0,20781.0,0.44797795]
[1673708114123,0.48207764,20786.0,20781.0,0.019252]
[1673708114388,0.66286476,20786.0,20781.0,0.69117895]
[1673708114637,0.18177176,20786.0,20781.0,1.17238695]
[1673708114877,0.18177176,20786.0,20782.0,0.1]
[1673708115129,0.001,20784.0,20782.0,0.29072595]
[1673708115394,0.00098464,20786.0,20781.0,0.600439]
[1673708115641,0.00098464,20786.0,20781.0,1.27237195]
[1673708115642,0.18177176,20786.0,20781.0,1.27237195]
[1673708115903,0.00098464,20786.0,20782.0,0.1]
[1673708116156,0.00098464,20786.0,20783.0,1.95506295]
[1673708116407,0.00098464,20786.0,20784.0,0.494304]
[1673708116657,0.480979,20791.0,20785.0,0.320834]
[1673708116906,0.98074897,20792.0,20786.0,0.38500895]
[1673708117155,0.62255122,20792.0,20787.0,0.19072595]
[1673708117410,0.00744136,20792.0,20788.0,0.19072595]
[1673708117664,0.00744136,20792.0,20789.0,0.99260995]
[1673708117914,0.00744136,20792.0,20790.0,0.494138]
[1673708118156,0.00647661,20792.0,20791.0,0.801811]
[1673708118415,0.00647661,20792.0,20791.0,1.101811]
[1673708118663,0.00747661,20792.0,20791.0,0.801811]
[1673708118911,0.00747661,20792.0,20791.0,0.480977]
[1673708118912,0.00647661,20792.0,20791.0,0.480977]
[1673708119162,0.00647661,20792.0,20790.0,0.619998]
[1673708119163,0.00747661,20792.0,20790.0,0.619998]
[1673708119436,0.18726373,20792.0,20787.0,0.481047]
[1673708119685,0.18726373,20792.0,20791.0,0.139]
[1673708119686,0.48843461,20792.0,20791.0,0.139]
[1673708119932,0.48843461,20792.0,20784.0,0.481123]
[1673708119933,0.50765951,20792.0,20784.0,0.481123]
[1673708120200,0.019986,20791.0,20784.0,0.481123]
[1673708120450,0.48099,20791.0,20784.0,0.481123]
[1673708120704,0.4883953,20792.0,20786.0,0.1]
[1673708120951,0.4883953,20792.0,20786.0,0.67180395]
[1673708120952,0.67018242,20792.0,20786.0,0.67180395]
[1673708121202,0.67018242,20792.0,20787.0,0.19072595]
[1673708121452,0.66918242,20792.0,20787.0,0.19072595]
[1673708121703,0.001,20791.0,20787.0,0.19072595]
[1673708121962,0.66918242,20792.0,20787.0,0.3]
[1673708121963,0.4883953,20792.0,20787.0,0.3]
[1673708122206,0.67018242,20792.0,20787.0,0.49072595]
[1673708122456,0.0084373,20792.0,20787.0,1.45286395]
[1673708122715,0.0084373,20792.0,20789.0,0.1]
[1673708122716,0.0094373,20792.0,20789.0,0.1]
[1673708122965,0.0084373,20792.0,20790.0,0.801866]
[1673708123218,0.0084373,20792.0,20791.0,0.194112]
[1673708123465,0.00747661,20792.0,20790.0,0.481]
[1673708123715,0.00747661,20792.0,20788.0,1.385933]
[1673708123716,0.18926373,20792.0,20788.0,1.385933]
[1673708123966,0.18726373,20792.0,20788.0,0.481033]
[1673708124216,0.18078712,20791.0,20787.0,1.5]
[1673708124481,1.16278312,20790.0,20787.0,1.5]
[1673708124725,1.16278312,20790.0,20788.0,0.138]
[1673708124726,0.019986,20789.0,20788.0,0.138]
[1673708125221,1.1052891,20790.0,20788.0,0.138]
[1673708125473,1.1052891,20790.0,20787.0,1.5]
[1673708125474,0.019986,20789.0,20787.0,1.5]
[1673708125721,0.6242841,20790.0,20787.0,1.638]
[1673708125970,0.481005,20790.0,20787.0,1.638]
[1673708126463,0.481005,20790.0,20787.0,1.5]
[1673708126718,0.1432791,20791.0,20787.0,1.5]
[1673708126972,0.15075464,20792.0,20788.0,0.19072595]
[1673708127224,0.15075464,20792.0,20789.0,0.51159195]
[1673708127225,0.00747554,20792.0,20789.0,0.51159195]
[1673708127479,0.001,20790.0,20789.0,0.19072595]
[1673708127726,0.001,20790.0,20789.0,0.620866]
[1673708127981,0.00647661,20792.0,20789.0,0.620866]
[1673708128235,0.001,20791.0,20790.0,0.19414]
[1673708128486,0.00647661,20792.0,20788.0,0.481042]
[1673708128735,0.001,20790.0,20789.0,0.139]
[1673708129255,0.57615487,20790.0,20789.0,0.139]
[1673708129507,0.55763285,20790.0,20787.0,1.5]
[1673708129757,1.19945497,20790.0,20789.0,0.139]
[1673708130014,1.00248385,20790.0,20787.0,1.5]
[1673708130261,0.35949395,20789.0,20787.0,1.5]
[1673708130546,0.019986,20788.0,20787.0,1.475]
[1673708130794,0.14379758,20789.0,20787.0,1.475]
[1673708131043,1.10684158,20790.0,20787.0,1.475]
[1673708131290,0.019986,20789.0,20787.0,1.475]
[1673708131539,0.48103,20789.0,20787.0,1.475]
[1673708131791,0.962053,20789.0,20787.0,1.475]
[1673708132053,0.019986,20788.0,20787.0,1.475]
[1673708132294,0.019986,20788.0,20787.0,1.613]
[1673708132295,0.501032,20788.0,20787.0,1.613]
[1673708132547,0.481046,20788.0,20787.0,1.613]
[1673708133048,0.481046,20788.0,20787.0,1.475]
[1673708133298,1.15711257,20788.0,20787.0,1.613]
[1673708133542,2.36218396,20788.0,20787.0,1.613]
[1673708133796,1.65943262,20788.0,20787.0,1.613]
[1673708134047,1.01331499,20788.0,20787.0,1.613]
[1673708134310,0.03123699,20788.0,20787.0,1.613]
[1673708135313,0.51228299,20788.0,20787.0,1.613]
[1673708136086,1.25713226,20788.0,20787.0,1.613]
[1673708136339,1.40667976,20788.0,20787.0,1.613]
[1673708136592,3.3273025,20788.0,20787.0,1.613]
[1673708136840,3.51794599,20788.0,20787.0,0.66567701]
[1673708137098,2.76401934,20788.0,20787.0,0.66567701]
[1673708137343,2.47892942,20788.0,20787.0,0.66567701]
[1673708137588,1.51560524,20788.0,20787.0,0.52767701]
[1673708137843,1.37180231,20788.0,20787.0,0.52767701]
[1673708138339,1.15610849,20788.0,20787.0,0.52767701]
[1673708138595,0.03023699,20788.0,20787.0,0.52767701]
[1673708139089,0.03023699,20788.0,20787.0,0.96667701]
[1673708139090,0.03223699,20788.0,20787.0,0.96667701]
[1673708139340,0.002,20788.0,20787.0,1.28754301]
[1673708139591,0.02821106,20791.0,20788.0,0.1]
[1673708139835,0.02821106,20791.0,20789.0,0.194185]
[1673708140085,0.02821106,20791.0,20789.0,0.49072595]
[1673708140352,0.02821106,20791.0,20789.0,0.3]
[1673708140601,0.00749262,20794.0,20790.0,0.51159195]
[1673708140847,0.00749262,20794.0,20791.0,0.48483895]
[1673708140848,0.00847299,20794.0,20791.0,0.48483895]
[1673708141100,0.00847299,20794.0,20792.0,0.81155595]
[1673708141346,0.00749262,20794.0,20793.0,1.34668095]
[1673708141605,0.00749262,20794.0,20793.0,1.255955]
[1673708141857,0.00749262,20794.0,20793.0,1.555955]
[1673708142104,0.00749262,20797.0,20794.0,0.00749]
[1673708142360,0.35948732,20803.0,20795.0,0.98870864]
[1673708142618,0.00096232,20801.0,20796.0,1.43311173]
[1673708142867,1.92311418,20809.0,20799.0,0.14363876]
[1673708142868,1.44254118,20809.0,20799.0,0.14363876]
[1673708143133,1.44254118,20809.0,20802.0,1.442169]
[1673708143134,1.44237944,20809.0,20802.0,1.442169]
[1673708143379,1.44237944,20809.0,20803.0,1.28856164]
[1673708143637,1.44237944,20809.0,20804.0,0.48470595]
[1673708143890,1.44237944,20809.0,20805.0,1.28852964]
[1673708144148,0.00767735,20810.0,20806.0,1.34593495]
[1673708144416,0.00767735,20810.0,20807.0,1.88849764]
[1673708144687,0.51142569,20815.0,20807.0,1.88849764]
[1673708144688,0.00813544,20815.0,20808.0,0.96186464]
[1673708144948,0.00813544,20815.0,20809.0,0.81126395]
[1673708145186,0.00813544,20815.0,20810.0,0.86183864]
[1673708145479,0.51142569,20820.0,20810.0,0.86183864]
[1673708145480,0.00813544,20820.0,20813.0,0.1]
[1673708145722,0.00813544,20820.0,20814.0,0.38459695]
[1673708145975,0.00813544,20820.0,20815.0,1.77199995]
[1673708146230,0.00800036,20816.0,20815.0,0.48042]
[1673708146477,0.00800036,20816.0,20813.0,0.780451]
[1673708146725,0.00800036,20816.0,20814.0,0.320866]